[Event "Queens Festival Europe 2022"]
[Site "Tornelo"]
[Date "2022.06.19"]
[Round "2.3"]
[White "Kanyamarala, Trisha"]
[Black "Ibrahimova, Sabina"]
[Result "0-1"]
[ECO "E90"]
[WhiteElo "2127"]
[BlackElo "2146"]
[Annotator "NA RC"]
[PlyCount "78"]
[EventDate "2022.06.19"]
[EventType "swiss"]
[EventCountry "NET"]
[SourceTitle "playchess.com"]
[Source "ChessBase"]
[SourceQuality "1"]
[TimeControl "180+2"]

1. d4 {[%emt 0:00:02]} Nf6 {[%emt 0:00:06]} 2. c4 {[%emt 0:00:06]} g6 {[%emt 0:00:01]} 3. Nc3 {[%emt 0:00:03]} Bg7 {[%emt 0:00:02]} 4. e4 {[%emt 0:00:01]} d6 {[%emt 0:00:01]} 5. Nf3 {[%emt 0:00:13]} O-O {[%emt 0:00:02]} 6. Be2 {[%emt 0:00:02]} e5 {[%emt 0:00:02]} 7. d5 {[%emt 0:00:10]} a5 {[%emt 0:00:04]} 8. h3 {[%emt 0:00:02]} Na6 {[%emt 0:00:09]} 9. Bg5 {[%emt 0:00:03]} Nc5 {[%emt 0:00:11]} 10. Nd2 {[%emt 0:00:06]} h6 {[%emt 0:00:07]} 11. Be3 {[%emt 0:00:03]} Nh7 {[%emt 0:00:40]} 12. g4 {[%emt 0:00:12]} c6 {[%emt 0:00:16]} 13. Qc2 {[%emt 0:00:08]} Bd7 {[%emt 0:00:06]} 14. O-O-O {[%emt 0:00:12]} cxd5 {[%emt 0:00:31]} 15. Nxd5 {[%emt 0:00:25]} Rc8 {[%emt 0:00:03]} 16. Kb1 {[%emt 0:00:14]} Nf6 {[%emt 0:00:10]} 17. Nxf6+ {[%emt 0:00:47]} Qxf6 {[%emt 0:00:03]} 18. g5 {[%emt 0:00:15]} hxg5 {[%emt 0:00:08]} 19. Rdg1 {[%emt 0:00:04]} Ne6 {[%emt 0:00:09]} 20. Bg4 {[%emt 0:00:12]} b5 {[%emt 0:00:17]} 21. Bxe6 {[%emt 0:00:05]} Qxe6 {[%emt 0:00:20]} 22. Bxg5 {[%emt 0:00:08]} bxc4 {[%emt 0:00:02]} 23. Rg3 {[%emt 0:00:01]} c3 {[%emt 0:00:08]} 24. Rxc3 {[%emt 0:00:02]} Rxc3 {[%emt 0:00:02]} 25. Qxc3 {[%emt 0:00:01]} Rc8 {[%emt 0:00:02]} 26. Qb3 {[%emt 0:00:02]} Qe8 {[%emt 0:00:05]} 27. h4 {[%emt 0:00:01]} Be6 {[%emt 0:00:02]} 28. Qe3 {[%emt 0:00:05]} Qa4 {[%emt 0:00:02]} 29. Nb3 {[%emt 0:00:05]} Rb8 {[%emt 0:00:03]} 30. h5 {[%emt 0:00:04]} Bxb3 {[%emt 0:00:02]} 31. axb3 {[%emt 0:00:02]} Rxb3 {[%emt 0:00:02]} 32. Qc1 {[%emt 0:00:06]} Qxe4+ {[%emt 0:00:03]} 33. Ka2 {[%emt 0:00:02]} Rb8 {[%emt 0:00:03]} 34. hxg6 {[%emt 0:00:02]} fxg6 {[%emt 0:00:01]} 35. Re1 {[%emt 0:00:03]} Qd5+ {[%emt 0:00:02]} 36. Kb1 {[%emt 0:00:01]} e4 {[%emt 0:00:01]} 37. Bf4 {[%emt 0:00:03]} Rxb2+ {[%emt 0:00:02]} 38. Ka1 {[%emt 0:00:01]} Rc2+ {[%emt 0:00:02]} 39. Kb1 {[%emt 0:00:03]} Qa2# {[%emt 0:00:02]} 0-1

[Event "Queens Festival Europe 2022"]
[Site "Tornelo"]
[Date "2022.06.19"]
[Round "2.3"]
[White "Vujcic, Milena"]
[Black "Can, Isil"]
[Result "1-0"]
[ECO "C97"]
[WhiteElo "1987"]
[BlackElo "1901"]
[Annotator "NA RC"]
[PlyCount "61"]
[EventDate "2022.06.19"]
[EventType "swiss"]
[EventCountry "NET"]
[SourceTitle "playchess.com"]
[Source "ChessBase"]
[SourceQuality "1"]
[TimeControl "180+2"]

1. e4 {[%emt 0:00:02]} e5 {[%emt 0:00:04]} 2. Nf3 {[%emt 0:00:02]} Nc6 {[%emt 0:00:01]} 3. Bb5 {[%emt 0:00:02]} a6 {[%emt 0:00:02]} 4. Ba4 {[%emt 0:00:02]} Nf6 {[%emt 0:00:01]} 5. O-O {[%emt 0:00:01]} Be7 {[%emt 0:00:02]} 6. Re1 {[%emt 0:00:02]} b5 {[%emt 0:00:01]} 7. Bb3 {[%emt 0:00:01]} d6 {[%emt 0:00:05]} 8. c3 {[%emt 0:00:05]} O-O {[%emt 0:00:01]} 9. h3 {[%emt 0:00:02]} Na5 {[%emt 0:00:02]} 10. Bc2 {[%emt 0:00:01]} c5 {[%emt 0:00:01]} 11. d4 {[%emt 0:00:02]} Qc7 {[%emt 0:00:04]} 12. Nbd2 {[%emt 0:00:04]} Nd7 {[%emt 0:00:10]} 13. Nf1 {[%emt 0:00:04]} Re8 {[%emt 0:00:24]} 14. Ng3 {[%emt 0:00:03]} Bf8 {[%emt 0:00:02]} 15. Be3 {[%emt 0:00:32]} Nc4 {[%emt 0:00:04]} 16. Bc1 {[%emt 0:00:05]} cxd4 {[%emt 0:00:20]} 17. cxd4 {[%emt 0:00:02]} Bb7 {[%emt 0:00:02]} 18. b3 {[%emt 0:00:11]} Ncb6 {[%emt 0:00:03]} 19. Bb2 {[%emt 0:00:05]} Rac8 {[%emt 0:00:11]} 20. Rc1 {[%emt 0:00:02]} Qd8 {[%emt 0:00:23]} 21. Qe2 {[%emt 0:00:47]} g6 {[%emt 0:00:06]} 22. Red1 {[%emt 0:00:12]} Qe7 {[%emt 0:00:18]} 23. Ba3 {[%emt 0:00:14]} Qf6 {[%emt 0:00:24]} 24. Bb1 {[%emt 0:00:28]} Rxc1 {[%emt 0:00:31]} 25. Bxc1 {[%emt 0:00:02]} Bg7 {[%emt 0:00:16]} 26. Bg5 {[%emt 0:00:03]} Qe6 {[%emt 0:00:12]} 27. d5 {[%emt 0:00:02]} Nxd5 {[%emt 0:00:03]} 28. exd5 {[%emt 0:00:01]} Bxd5 {[%emt 0:00:01]} 29. Be3 {[%emt 0:00:07]} e4 {[%emt 0:00:02]} 30. Ng5 {[%emt 0:00:02]} Qe7 {[%emt 0:00:02]} 31. Rxd5 {[%emt 0:00:02]} 1-0

[Event "Queens Festival Europe 2022"]
[Site "Tornelo"]
[Date "2022.06.19"]
[Round "2.3"]
[White "Frundina, Yelyzaveta"]
[Black "Lampard, Alice"]
[Result "0-1"]
[ECO "B34"]
[WhiteElo "1624"]
[BlackElo "1756"]
[Annotator "NA RC"]
[PlyCount "46"]
[EventDate "2022.06.19"]
[EventType "swiss"]
[EventCountry "NET"]
[SourceTitle "playchess.com"]
[Source "ChessBase"]
[SourceQuality "1"]
[TimeControl "180+2"]

1. e4 {[%emt 0:00:02]} c5 {[%emt 0:00:05]} 2. Nf3 {[%emt 0:00:03]} Nc6 {[%emt 0:00:02]} 3. d4 {[%emt 0:00:01]} cxd4 {[%emt 0:00:01]} 4. Nxd4 {[%emt 0:00:02]} g6 {[%emt 0:00:01]} 5. Nc3 {[%emt 0:00:02]} Bg7 {[%emt 0:00:01]} 6. Nxc6 {[%emt 0:00:02]} bxc6 {[%emt 0:00:05]} 7. Bc4 {[%emt 0:00:10]} e6 {[%emt 0:00:11]} 8. Bb3 {[%emt 0:00:05]} Ne7 {[%emt 0:00:04]} 9. Bg5 {[%emt 0:00:16]} h6 {[%emt 0:00:15]} 10. Bf4 {[%emt 0:00:06]} d5 {[%emt 0:00:18]} 11. exd5 {[%emt 0:00:12]} cxd5 {[%emt 0:00:17]} 12. O-O {[%emt 0:00:12]} O-O {[%emt 0:00:01]} 13. Qd2 {[%emt 0:00:06]} Kh7 {[%emt 0:00:03]} 14. Rfe1 {[%emt 0:00:12]} Ba6 {[%emt 0:00:15]} 15. Be5 {[%emt 0:00:09]} f6 {[%emt 0:00:16]} 16. Bg3 {[%emt 0:00:10]} d4 {[%emt 0:00:35]} 17. Ne4 {[%emt 0:00:14]} e5 {[%emt 0:00:11]} 18. Rad1 {[%emt 0:00:21]} Rc8 {[%emt 0:00:02]} 19. c3 {[%emt 0:00:13]} f5 {[%emt 0:00:05]} 20. Ng5+ {[%emt 0:00:18]} hxg5 {[%emt 0:00:01]} 21. Qxg5 {[%emt 0:00:03]} Ng8 {[%emt 0:00:08]} 22. Qxd8 {[%emt 0:00:26]} Rfxd8 {[%emt 0:00:04]} 23. Bxe5 {[%emt 0:00:07]} dxc3 {[%emt 0:00:11]} 0-1

[Event "Queens Festival Europe 2022"]
[Site "Tornelo"]
[Date "2022.06.19"]
[Round "2.3"]
[White "Rahimli, Ulkar"]
[Black "Strnadova, Monika"]
[Result "1-0"]
[ECO "A48"]
[WhiteElo "1268"]
[BlackElo "1518"]
[Annotator "NA RC"]
[PlyCount "87"]
[EventDate "2022.06.19"]
[EventType "swiss"]
[EventCountry "NET"]
[SourceTitle "playchess.com"]
[Source "ChessBase"]
[SourceQuality "1"]
[TimeControl "180+2"]

1. d4 {[%emt 0:00:02]} Nf6 {[%emt 0:00:06]} 2. Nf3 {[%emt 0:00:04]} g6 {[%emt 0:00:02]} 3. e3 {[%emt 0:00:02]} Bg7 {[%emt 0:00:01]} 4. Bd3 {[%emt 0:00:02]} O-O {[%emt 0:00:03]} 5. O-O {[%emt 0:00:02]} d6 {[%emt 0:00:04]} 6. b3 {[%emt 0:00:01]} Nbd7 {[%emt 0:00:03]} 7. Bb2 {[%emt 0:00:02]} c5 {[%emt 0:00:01]} 8. Nbd2 {[%emt 0:00:03]} b6 {[%emt 0:00:03]} 9. c4 {[%emt 0:00:02]} Bb7 {[%emt 0:00:04]} 10. Rc1 {[%emt 0:00:03]} Rc8 {[%emt 0:00:03]} 11. d5 {[%emt 0:00:04]} Ng4 {[%emt 0:00:10]} 12. Bxg7 {[%emt 0:00:05]} Kxg7 {[%emt 0:00:01]} 13. h3 {[%emt 0:00:03]} Nge5 {[%emt 0:00:05]} 14. Nxe5 {[%emt 0:00:09]} Nxe5 {[%emt 0:00:02]} 15. Bc2 {[%emt 0:00:23]} e6 {[%emt 0:00:09]} 16. f4 {[%emt 0:00:03]} Nd7 {[%emt 0:00:07]} 17. e4 {[%emt 0:00:04]} exd5 {[%emt 0:00:13]} 18. cxd5 {[%emt 0:00:09]} Re8 {[%emt 0:00:06]} 19. Nc4 {[%emt 0:00:05]} Nf6 {[%emt 0:00:11]} 20. Qf3 {[%emt 0:00:11]} b5 {[%emt 0:00:12]} 21. Nd2 {[%emt 0:00:07]} Qa5 {[%emt 0:00:08]} 22. Qf2 {[%emt 0:00:28]} Qb4 {[%emt 0:00:28]} 23. e5 {[%emt 0:00:28]} Nxd5 {[%emt 0:00:07]} 24. exd6 {[%emt 0:00:02]} Rcd8 {[%emt 0:00:20]} 25. Ne4 {[%emt 0:00:13]} Rxe4 {[%emt 0:00:10]} 26. Bxe4 {[%emt 0:00:03]} Qxe4 {[%emt 0:00:01]} 27. Qf3 {[%emt 0:00:14]} Qxf3 {[%emt 0:00:15]} 28. Rxf3 {[%emt 0:00:03]} Rxd6 {[%emt 0:00:02]} 29. Rd3 {[%emt 0:00:03]} Rf6 {[%emt 0:00:16]} 30. Rxc5 {[%emt 0:00:07]} Nxf4 {[%emt 0:00:09]} 31. Rd2 {[%emt 0:00:03]} Re6 {[%emt 0:00:06]} 32. Rxb5 {[%emt 0:00:06]} Re1+ {[%emt 0:00:02]} 33. Kh2 {[%emt 0:00:03]} Re2 {[%emt 0:00:04]} 34. Rxe2 {[%emt 0:00:02]} Nxe2 {[%emt 0:00:02]} 35. Rxb7 {[%emt 0:00:02]} a5 {[%emt 0:00:02]} 36. Ra7 {[%emt 0:00:01]} Nc3 {[%emt 0:00:01]} 37. Rxa5 {[%emt 0:00:02]} Kf6 {[%emt 0:00:01]} 38. b4 {[%emt 0:00:02]} Ke6 {[%emt 0:00:03]} 39. Ra6+ {[%emt 0:00:03]} Kd5 {[%emt 0:00:03]} 40. a4 {[%emt 0:00:02]} Kc4 {[%emt 0:00:03]} 41. b5 {[%emt 0:00:02]} Kc5 {[%emt 0:00:01]} 42. Ra7 {[%emt 0:00:04]} f5 {[%emt 0:00:04]} 43. Rc7+ {[%emt 0:00:03]} Kb4 {[%emt 0:00:02]} 44. Rxc3 {[%emt 0:00:02]} 1-0

[Event "Queens Festival Europe 2022"]
[Site "Tornelo"]
[Date "2022.06.19"]
[Round "2.4"]
[White "Head, Louise"]
[Black "Amrayeva, Aytan"]
[Result "1/2-1/2"]
[ECO "D36"]
[WhiteElo "2025"]
[BlackElo "2143"]
[Annotator "NA RC"]
[PlyCount "124"]
[EventDate "2022.06.19"]
[EventType "swiss"]
[EventCountry "NET"]
[SourceTitle "playchess.com"]
[Source "ChessBase"]
[SourceQuality "1"]
[TimeControl "180+2"]

1. d4 {[%emt 0:00:02]} e6 {[%emt 0:00:05]} 2. c4 {[%emt 0:00:02]} Nf6 {[%emt 0:00:01]} 3. Nf3 {[%emt 0:00:02]} d5 {[%emt 0:00:01]} 4. Nc3 {[%emt 0:00:02]} c6 {[%emt 0:00:02]} 5. cxd5 {[%emt 0:00:02]} exd5 {[%emt 0:00:02]} 6. Bg5 {[%emt 0:00:02]} Be7 {[%emt 0:00:03]} 7. Qc2 {[%emt 0:00:03]} Nbd7 {[%emt 0:00:01]} 8. e3 {[%emt 0:00:02]} O-O {[%emt 0:00:02]} 9. Bd3 {[%emt 0:00:01]} Re8 {[%emt 0:00:01]} 10. O-O {[%emt 0:00:02]} Nf8 {[%emt 0:00:02]} 11. Bxf6 {[%emt 0:00:27]} Bxf6 {[%emt 0:00:02]} 12. b4 {[%emt 0:00:01]} a6 {[%emt 0:00:03]} 13. a4 {[%emt 0:00:02]} Qd6 {[%emt 0:00:25]} 14. b5 {[%emt 0:00:08]} axb5 {[%emt 0:00:02]} 15. axb5 {[%emt 0:00:02]} Rxa1 {[%emt 0:00:02]} 16. Rxa1 {[%emt 0:00:02]} c5 {[%emt 0:00:01]} 17. dxc5 {[%emt 0:00:08]} Qxc5 {[%emt 0:00:02]} 18. Rc1 {[%emt 0:00:03]} Bg4 {[%emt 0:00:11]} 19. Ne2 {[%emt 0:00:14]} Qa3 {[%emt 0:00:16]} 20. Qd1 {[%emt 0:00:18]} Ra8 {[%emt 0:00:33]} 21. h3 {[%emt 0:00:19]} Bd7 {[%emt 0:00:05]} 22. Nfd4 {[%emt 0:00:11]} Qd6 {[%emt 0:00:08]} 23. Ra1 {[%emt 0:00:18]} Rc8 {[%emt 0:00:05]} 24. Rc1 {[%emt 0:00:01]} Ra8 {[%emt 0:00:03]} 25. Ra1 {[%emt 0:00:02]} Re8 {[%emt 0:00:07]} 26. Ra2 {[%emt 0:00:09]} Bd8 {[%emt 0:00:04]} 27. Qc2 {[%emt 0:00:06]} Bc7 {[%emt 0:00:02]} 28. Nf4 {[%emt 0:00:09]} g5 {[%emt 0:00:29]} 29. Nh5 {[%emt 0:00:05]} Qh2+ {[%emt 0:00:10]} 30. Kf1 {[%emt 0:00:01]} Be5 {[%emt 0:00:21]} 31. Bf5 {[%emt 0:00:12]} Qh1+ {[%emt 0:00:03]} 32. Ke2 {[%emt 0:00:03]} Qxg2 {[%emt 0:00:03]} 33. Bxd7 {[%emt 0:00:03]} Nxd7 {[%emt 0:00:05]} 34. Qf5 {[%emt 0:00:08]} Nf8 {[%emt 0:00:12]} 35. Nf3 {[%emt 0:00:09]} Bg7 {[%emt 0:00:08]} 36. Nxg7 {[%emt 0:00:04]} Kxg7 {[%emt 0:00:02]} 37. Qxd5 {[%emt 0:00:05]} Ng6 {[%emt 0:00:05]} 38. Qxg5 {[%emt 0:00:03]} Qxg5 {[%emt 0:00:02]} 39. Nxg5 {[%emt 0:00:02]} h6 {[%emt 0:00:01]} 40. Nf3 {[%emt 0:00:08]} Rc8 {[%emt 0:00:02]} 41. Nd4 {[%emt 0:00:03]} Ne5 {[%emt 0:00:03]} 42. f4 {[%emt 0:00:04]} Nd7 {[%emt 0:00:03]} 43. Rc2 {[%emt 0:00:03]} Ra8 {[%emt 0:00:03]} 44. Rc7 {[%emt 0:00:02]} Ra2+ {[%emt 0:00:02]} 45. Kf3 {[%emt 0:00:03]} Nf6 {[%emt 0:00:04]} 46. Rxb7 {[%emt 0:00:04]} Nd5 {[%emt 0:00:02]} 47. Nf5+ {[%emt 0:00:02]} Kf6 {[%emt 0:00:02]} 48. Nd6 {[%emt 0:00:02]} Ra3 {[%emt 0:00:02]} 49. Ne4+ {[%emt 0:00:03]} Ke6 {[%emt 0:00:03]} 50. Nc5+ {[%emt 0:00:02]} Kd6 {[%emt 0:00:01]} 51. Ne4+ {[%emt 0:00:01]} Ke6 {[%emt 0:00:02]} 52. f5+ {[%emt 0:00:02]} Kxf5 {[%emt 0:00:02]} 53. Rxf7+ {[%emt 0:00:02]} Ke6 {[%emt 0:00:01]} 54. Rb7 {[%emt 0:00:07]} Rxe3+ {[%emt 0:00:02]} 55. Kg4 {[%emt 0:00:01]} Rxe4+ {[%emt 0:00:01]} 56. Kh5 {[%emt 0:00:01]} Re3 {[%emt 0:00:02]} 57. Kxh6 {[%emt 0:00:03]} Rxh3+ {[%emt 0:00:02]} 58. Kg7 {[%emt 0:00:01]} Rb3 {[%emt 0:00:02]} 59. Kg6 {[%emt 0:00:02]} Kd6 {[%emt 0:00:01]} 60. Kf5 {[%emt 0:00:02]} Kc5 {[%emt 0:00:02]} 61. Ke5 {[%emt 0:00:01]} Rxb5 {[%emt 0:00:01]} 62. Rxb5+ {[%emt 0:00:02]} Kxb5 {[%emt 0:00:01]} 1/2-1/2

[Event "Queens Festival Europe 2022"]
[Site "Tornelo"]
[Date "2022.06.19"]
[Round "2.4"]
[White "van den Brink, Nienke"]
[Black "Rybackova, Lucie"]
[Result "0-1"]
[ECO "B43"]
[WhiteElo "1771"]
[BlackElo "1696"]
[Annotator "NA RC"]
[PlyCount "26"]
[EventDate "2022.06.19"]
[EventType "swiss"]
[EventCountry "NET"]
[SourceTitle "playchess.com"]
[Source "ChessBase"]
[SourceQuality "1"]
[TimeControl "180+2"]

1. e4 {[%emt 0:00:02]} c5 {[%emt 0:00:04]} 2. Nf3 {[%emt 0:00:02]} e6 {[%emt 0:00:04]} 3. d4 {[%emt 0:00:02]} cxd4 {[%emt 0:00:02]} 4. Nxd4 {[%emt 0:00:02]} a6 {[%emt 0:00:01]} 5. Nc3 {[%emt 0:00:02]} Qc7 {[%emt 0:00:02]} 6. Be3 {[%emt 0:00:05]} Bb4 {[%emt 0:00:03]} 7. Qd2 {[%emt 0:00:22]} Nf6 {[%emt 0:00:02]} 8. f3 {[%emt 0:00:03]} d5 {[%emt 0:00:08]} 9. Bf4 {[%emt 0:00:17]} e5 {[%emt 0:00:06]} 10. Nf5 {[%emt 0:00:18]} O-O {[%emt 0:00:15]} 11. Bg5 {[%emt 0:00:12]} Bxf5 {[%emt 0:00:03]} 12. exf5 {[%emt 0:00:03]} d4 {[%emt 0:00:02]} 13. Bxf6 {[%emt 0:00:05]} gxf6 {[%emt 0:00:02]} 0-1

[Event "Queens Festival Europe 2022"]
[Site "Tornelo"]
[Date "2022.06.19"]
[Round "2.5"]
[White "Maksimovic, Suzana"]
[Black "Sikorova, Olga"]
[Result "0-1"]
[ECO "A46"]
[WhiteElo "2145"]
[BlackElo "2173"]
[Annotator "NA RC"]
[PlyCount "82"]
[EventDate "2022.06.19"]
[EventType "swiss"]
[EventCountry "NET"]
[SourceTitle "playchess.com"]
[Source "ChessBase"]
[SourceQuality "1"]
[TimeControl "180+2"]

1. d4 {[%emt 0:00:02]} Nf6 {[%emt 0:00:05]} 2. Bg5 {[%emt 0:00:08]} e6 {[%emt 0:00:03]} 3. e4 {[%emt 0:00:09]} h6 {[%emt 0:00:03]} 4. Bxf6 {[%emt 0:00:03]} Qxf6 {[%emt 0:00:02]} 5. Nf3 {[%emt 0:00:01]} g6 {[%emt 0:00:01]} 6. e5 {[%emt 0:00:05]} Qg7 {[%emt 0:00:02]} 7. h4 {[%emt 0:00:01]} b6 {[%emt 0:00:05]} 8. Nbd2 {[%emt 0:00:06]} Bb7 {[%emt 0:00:01]} 9. Bd3 {[%emt 0:00:02]} Nc6 {[%emt 0:00:05]} 10. c3 {[%emt 0:00:02]} d6 {[%emt 0:00:03]} 11. Qe2 {[%emt 0:00:05]} dxe5 {[%emt 0:00:05]} 12. dxe5 {[%emt 0:00:03]} O-O-O {[%emt 0:00:03]} 13. O-O-O {[%emt 0:00:09]} Be7 {[%emt 0:00:05]} 14. Kb1 {[%emt 0:00:04]} Rd7 {[%emt 0:00:03]} 15. Ba6 {[%emt 0:00:12]} Rhd8 {[%emt 0:00:04]} 16. a3 {[%emt 0:00:12]} g5 {[%emt 0:00:23]} 17. hxg5 {[%emt 0:00:04]} hxg5 {[%emt 0:00:01]} 18. Bxb7+ {[%emt 0:00:05]} Kxb7 {[%emt 0:00:02]} 19. g4 {[%emt 0:00:02]} Qg6+ {[%emt 0:00:09]} 20. Ka2 {[%emt 0:00:10]} Qd3 {[%emt 0:00:02]} 21. Qxd3 {[%emt 0:00:11]} Rxd3 {[%emt 0:00:02]} 22. Rh7 {[%emt 0:00:04]} Rxf3 {[%emt 0:00:03]} 23. Nxf3 {[%emt 0:00:06]} Rxd1 {[%emt 0:00:03]} 24. Rxf7 {[%emt 0:00:03]} Rf1 {[%emt 0:00:06]} 25. Nd4 {[%emt 0:00:05]} Nxd4 {[%emt 0:00:03]} 26. cxd4 {[%emt 0:00:05]} Bd8 {[%emt 0:00:02]} 27. Rf8 {[%emt 0:00:05]} Kc8 {[%emt 0:00:02]} 28. Rf7 {[%emt 0:00:04]} Rd1 {[%emt 0:00:04]} 29. f4 {[%emt 0:00:09]} gxf4 {[%emt 0:00:15]} 30. Rxf4 {[%emt 0:00:02]} Bg5 {[%emt 0:00:01]} 31. Rf8+ {[%emt 0:00:06]} Kb7 {[%emt 0:00:02]} 32. Rg8 {[%emt 0:00:02]} Be3 {[%emt 0:00:03]} 33. Rg6 {[%emt 0:00:05]} Rxd4 {[%emt 0:00:04]} 34. Rxe6 {[%emt 0:00:05]} Rxg4 {[%emt 0:00:02]} 35. Re7 {[%emt 0:00:30]} Re4 {[%emt 0:00:06]} 36. Kb3 {[%emt 0:00:04]} Bd4 {[%emt 0:00:06]} 37. e6 {[%emt 0:00:02]} Kc6 {[%emt 0:00:02]} 38. Re8 {[%emt 0:00:05]} a5 {[%emt 0:00:08]} 39. Kc4 {[%emt 0:00:06]} Bxb2+ {[%emt 0:00:05]} 40. Kd3 {[%emt 0:00:01]} Re5 {[%emt 0:00:02]} 41. a4 {[%emt 0:00:09]} Kd6 {[%emt 0:00:07]} 0-1

[Event "Queens Festival Europe 2022"]
[Site "Tornelo"]
[Date "2022.06.19"]
[Round "2.5"]
[White "Stastna, Martina"]
[Black "Shuqja, Klean"]
[Result "0-1"]
[ECO "C90"]
[WhiteElo "1912"]
[BlackElo "1839"]
[Annotator "NA RC"]
[PlyCount "72"]
[EventDate "2022.06.19"]
[EventType "swiss"]
[EventCountry "NET"]
[SourceTitle "playchess.com"]
[Source "ChessBase"]
[SourceQuality "1"]
[TimeControl "180+2"]

1. e4 {[%emt 0:00:02]} e5 {[%emt 0:00:06]} 2. Nf3 {[%emt 0:00:02]} Nc6 {[%emt 0:00:03]} 3. Bb5 {[%emt 0:00:02]} a6 {[%emt 0:00:07]} 4. Ba4 {[%emt 0:00:02]} Nf6 {[%emt 0:00:03]} 5. O-O {[%emt 0:00:02]} b5 {[%emt 0:00:02]} 6. Bb3 {[%emt 0:00:02]} Be7 {[%emt 0:00:26]} 7. c3 {[%emt 0:00:06]} d6 {[%emt 0:00:02]} 8. Re1 {[%emt 0:00:03]} Nb8 {[%emt 0:00:09]} 9. d4 {[%emt 0:00:14]} Nbd7 {[%emt 0:00:02]} 10. Nbd2 {[%emt 0:00:11]} O-O {[%emt 0:00:02]} 11. Nf1 {[%emt 0:00:03]} Bb7 {[%emt 0:00:14]} 12. Bc2 {[%emt 0:00:13]} Re8 {[%emt 0:00:02]} 13. Ng3 {[%emt 0:00:13]} g6 {[%emt 0:00:18]} 14. Bh6 {[%emt 0:00:05]} Bf8 {[%emt 0:00:04]} 15. Qd2 {[%emt 0:00:12]} c5 {[%emt 0:00:09]} 16. d5 {[%emt 0:00:19]} Bg7 {[%emt 0:00:12]} 17. Qg5 {[%emt 0:00:10]} Bxh6 {[%emt 0:01:07]} 18. Qxh6 {[%emt 0:00:02]} Ng4 {[%emt 0:00:04]} 19. Qd2 {[%emt 0:00:21]} c4 {[%emt 0:00:09]} 20. h3 {[%emt 0:00:02]} Ngf6 {[%emt 0:00:01]} 21. Qg5 {[%emt 0:00:10]} Kh8 {[%emt 0:00:04]} 22. Qh6 {[%emt 0:00:06]} Qe7 {[%emt 0:00:04]} 23. Nh2 {[%emt 0:00:12]} Qf8 {[%emt 0:00:02]} 24. Qd2 {[%emt 0:00:08]} Kg7 {[%emt 0:00:03]} 25. Ngf1 {[%emt 0:00:09]} h6 {[%emt 0:00:02]} 26. Ne3 {[%emt 0:00:03]} Nc5 {[%emt 0:00:04]} 27. Neg4 {[%emt 0:00:03]} Ng8 {[%emt 0:00:10]} 28. a3 {[%emt 0:00:09]} Qe7 {[%emt 0:00:04]} 29. Kh1 {[%emt 0:00:07]} Bc8 {[%emt 0:00:02]} 30. Qe2 {[%emt 0:00:05]} h5 {[%emt 0:00:01]} 31. Ne3 {[%emt 0:00:03]} Nf6 {[%emt 0:00:02]} 32. Nef1 {[%emt 0:00:04]} Rh8 {[%emt 0:00:02]} 33. Qd1 {[%emt 0:00:07]} Bd7 {[%emt 0:00:03]} 34. b4 {[%emt 0:00:03]} cxb3 {[%emt 0:00:02]} 35. Bxb3 {[%emt 0:00:03]} Ncxe4 {[%emt 0:00:02]} 36. c4 {[%emt 0:00:06]} Nxf2+ {[%emt 0:00:02]} 0-1

[Event "Queens Festival Europe 2022"]
[Site "Tornelo"]
[Date "2022.06.19"]
[Round "2.5"]
[White "Trivella, Maria"]
[Black "Sainbayar, Anuurai"]
[Result "1-0"]
[ECO "A43"]
[WhiteElo "1269"]
[BlackElo "1512"]
[Annotator "NA RC"]
[PlyCount "51"]
[EventDate "2022.06.19"]
[EventType "swiss"]
[EventCountry "NET"]
[SourceTitle "playchess.com"]
[Source "ChessBase"]
[SourceQuality "1"]
[TimeControl "180+2"]

1. d4 {[%emt 0:00:05]} e6 {[%emt 0:01:11]} 2. c4 {[%emt 0:00:02]} c5 {[%emt 0:00:11]} 3. d5 {[%emt 0:00:03]} exd5 {[%emt 0:00:02]} 4. cxd5 {[%emt 0:00:00]} d6 {[%emt 0:00:08]} 5. Nc3 {[%emt 0:00:01]} Bf5 {[%emt 0:00:06]} 6. Nf3 {[%emt 0:00:02]} h6 {[%emt 0:00:03]} 7. e4 {[%emt 0:00:02]} Bg4 {[%emt 0:00:05]} 8. Be2 {[%emt 0:00:03]} Nf6 {[%emt 0:00:02]} 9. Qc2 {[%emt 0:00:07]} Nbd7 {[%emt 0:00:05]} 10. h3 {[%emt 0:00:02]} Bh5 {[%emt 0:00:06]} 11. Bf4 {[%emt 0:00:14]} a6 {[%emt 0:00:03]} 12. g4 {[%emt 0:00:04]} Bg6 {[%emt 0:00:03]} 13. Nh4 {[%emt 0:00:15]} Bh7 {[%emt 0:00:07]} 14. Nf5 {[%emt 0:00:06]} Ne5 {[%emt 0:00:23]} 15. O-O-O {[%emt 0:00:15]} b5 {[%emt 0:00:12]} 16. Bxe5 {[%emt 0:00:03]} dxe5 {[%emt 0:00:02]} 17. f3 {[%emt 0:00:30]} Bxf5 {[%emt 0:00:13]} 18. gxf5 {[%emt 0:00:08]} c4 {[%emt 0:00:13]} 19. f4 {[%emt 0:00:09]} b4 {[%emt 0:00:16]} 20. Qa4+ {[%emt 0:00:19]} Nd7 {[%emt 0:00:04]} 21. Nb1 {[%emt 0:00:09]} Bd6 {[%emt 0:00:04]} 22. Bxc4 {[%emt 0:00:15]} O-O {[%emt 0:00:01]} 23. Nd2 {[%emt 0:00:02]} Rc8 {[%emt 0:00:03]} 24. Kb1 {[%emt 0:00:03]} Nb6 {[%emt 0:00:01]} 25. Qb3 {[%emt 0:00:01]} Nxc4 {[%emt 0:00:03]} 26. Nxc4 {[%emt 0:00:00]} 1-0